bitfinex/quotes_ETHUSD_20241004
["timestamp","ask_amount","ask_price","bid_price","bid_amount"]
[1728036220183,4.19146,2385.8,2385.4,0.8322]
[1728036220822,4.19146,2385.8,2385.4,5.02433]
[1728036221181,8.38306,2385.8,2385.4,5.02433]
[1728036221482,4.19146,2385.8,2385.6,0.21346996]
[1728036221882,8.38305,2385.8,2385.6,0.21346996]
[1728036222083,4.19164,2385.7,2385.6,0.21346996]
[1728036225725,6.24425184,2385.7,2385.6,0.21346996]
[1728036225890,10.1502702,2385.7,2385.6,0.21346996]
[1728036229079,6.24425184,2385.7,2385.6,0.21346996]
[1728036229209,4.19164,2385.7,2385.6,0.21346996]
[1728036229630,5.99047015,2385.7,2385.6,0.21346996]
[1728036237767,4.19164,2385.7,2385.6,0.21346996]
[1728036240941,4.19253,2385.2,2384.9,0.88150127]
[1728036241242,0.498743,2385.2,2385.1,1.00436407]
[1728036241442,8.99091015,2385.5,2385.1,5.19705407]
[1728036241746,4.19208,2385.5,2385.2,0.7986]
[1728036241973,4.19208,2385.5,2385.2,1.82572553]
[1728036242276,4.19218,2385.4,2385.2,0.7986]
[1728036242693,4.19234,2385.3,2385.2,0.7986]
[1728036243041,4.19218,2385.4,2385.2,0.7986]
[1728036245337,4.19234,2385.3,2385.1,0.20576407]
[1728036245552,5.99117015,2385.3,2385.1,0.20576407]
[1728036245757,4.19252,2385.2,2385.1,0.20576407]
[1728036246187,5.21088902,2385.2,2385.1,0.20576407]
[1728036248375,8.21088902,2385.2,2385.1,0.20576407]
[1728036250401,4.19332,2384.8,2384.6,0.822]
[1728036250604,4.19365,2384.6,2384.4,3.46411073]
[1728036251091,8.38735,2384.6,2384.4,3.46411073]
[1728036251273,4.19365,2384.6,2384.4,3.46411073]
[1728036251807,1.79883015,2384.7,2384.4,3.46411073]
[1728036251808,5.99225015,2384.7,2384.4,3.46411073]
[1728036251979,5.99225015,2384.7,2384.5,0.20663552]
[1728036252492,8.38694,2384.7,2384.5,0.20663552]
[1728036252866,6.79218015,2384.9,2384.5,0.20663552]
[1728036253061,4.19329,2384.8,2384.5,0.20663552]
[1728036253264,4.19341,2384.7,2384.5,0.20663552]
[1728036254350,4.19329,2384.8,2384.5,0.20663552]
[1728036255053,8.3866,2384.8,2384.5,0.20663552]
[1728036255353,4.19346,2384.7,2384.5,0.20663552]
[1728036255559,4.19357,2384.6,2384.5,0.20663552]
[1728036256286,5.29463602,2384.6,2384.5,0.20663552]
[1728036256485,9.11943602,2384.6,2384.5,0.20663552]
[1728036256862,10.91826617,2384.6,2384.5,0.20663552]
[1728036258860,4.19481,2383.9,2383.6,0.4206]
[1728036259060,5.99364015,2383.9,2383.6,0.4206]
[1728036259313,1.79883015,2383.9,2383.6,5.577909]
[1728036259512,4.19515,2383.8,2383.6,1.382609]
[1728036259809,4.19515,2383.7,2383.6,0.4206]
[1728036260189,4.19515,2383.7,2383.6,0.63139842]
[1728036260389,4.19515,2383.8,2383.6,0.63139842]
[1728036260589,8.39024,2383.8,2383.6,0.63139842]
[1728036260761,4.19509,2383.8,2383.6,0.63139842]
[1728036260960,4.19507,2383.8,2383.6,0.63139842]
[1728036261866,8.39016,2383.8,2383.6,0.63139842]
[1728036262567,4.1947,2384.0,2383.6,0.63139842]
[1728036262791,4.1947,2384.0,2383.6,5.80972326]
[1728036263201,4.19449,2384.1,2383.7,4.19504]
[1728036263604,3.90370127,2384.2,2383.8,4.19498]
[1728036263605,8.09799127,2384.2,2383.8,4.19498]
[1728036263764,4.19429,2384.2,2383.9,0.8137]
[1728036267517,3.0,2384.5,2384.0,4.1946]
[1728036267717,8.09763127,2384.4,2383.9,0.8137]
[1728036268012,8.38878,2384.2,2383.9,0.8137]
[1728036268905,4.19437,2384.2,2383.9,0.8137]
[1728036269124,4.19437,2384.2,2383.9,1.734064]
[1728036269674,4.19407,2384.4,2383.9,5.928844]
[1728036269872,7.19378,2384.5,2384.0,0.8191]
[1728036270103,7.19378,2384.5,2384.2,0.8191]
[1728036271503,4.19378,2384.5,2384.2,0.8191]
[1728036274204,4.19378,2384.5,2384.4,0.21447642]
[1728036291389,4.19378,2384.5,2383.8,1.3499]
[1728036291390,4.19448,2384.1,2383.8,1.3499]
[1728036291623,4.19448,2384.1,2384.0,0.21420072]
[1728036291987,5.99502216,2384.1,2384.0,0.21420072]
[1728036292190,7.09059538,2384.1,2384.0,0.21420072]
[1728036293725,5.99502216,2384.1,2384.0,0.21420072]
[1728036301261,9.77812216,2384.1,2384.0,0.21420072]
[1728036303252,5.58364216,2384.1,2383.5,0.4206]
[1728036303453,5.99587216,2383.6,2383.5,0.4206]
[1728036303655,5.99587216,2383.6,2383.4,0.8084]
[1728036303873,4.19551,2383.5,2383.4,0.8084]
[1728036304075,1.80054216,2383.6,2383.1,5.07764127]
[1728036304076,4.19586,2383.3,2383.2,0.8084]
[1728036304376,4.19586,2383.3,2383.0,0.8084]
[1728036304377,5.99640216,2383.3,2383.0,0.8084]
[1728036304581,1.80054216,2383.3,2383.0,0.8084]
[1728036304733,5.99647216,2383.3,2383.0,0.8084]
[1728036305233,1.80054216,2383.5,2383.0,5.00477]
[1728036305432,5.99607216,2383.5,2383.2,0.21307194]
[1728036305666,4.19553,2383.5,2383.2,0.21307194]
[1728036307173,7.19487,2383.9,2383.5,0.7553]
[1728036307768,7.19487,2383.9,2383.5,4.9508]
[1728036307969,4.19487,2383.9,2383.5,4.9508]
[1728036308477,4.19498,2383.8,2383.5,0.7553]
[1728036308683,4.19498,2383.8,2383.5,4.9508]
[1728036309477,4.19498,2383.8,2383.5,0.7553]
[1728036312352,4.19498,2383.8,2383.5,1.669979]
[1728036312680,4.19485,2383.9,2383.5,5.865469]
[1728036312885,4.19485,2383.9,2383.5,1.669979]
[1728036313183,4.19509,2383.8,2383.5,0.7553]
[1728036314482,4.19518,2383.7,2383.5,0.7553]
[1728036315343,4.19533,2383.6,2383.5,0.7553]
[1728036316258,4.19551,2383.5,2383.3,0.782]
[1728036316759,8.39114,2383.5,2383.3,0.782]
[1728036317188,4.19551,2383.5,2383.3,0.782]
[1728036317605,8.39116,2383.5,2383.3,0.782]
[1728036317900,4.19568,2383.4,2383.3,0.782]
[1728036318059,4.19551,2383.5,2383.3,0.782]
[1728036318459,4.19568,2383.4,2383.3,0.782]
[1728036319052,4.19551,2383.5,2383.3,0.782]
[1728036319907,4.19531,2383.7,2383.3,1.30112119]
[1728036319908,4.1954,2383.6,2383.3,1.30112119]
[1728036320062,4.19531,2383.7,2383.4,0.7995]
[1728036321968,4.19482,2383.9,2383.4,4.99501]
[1728036322270,4.1947,2384.0,2383.6,0.7511]
[1728036322684,4.1947,2384.0,2383.6,4.94639]
[1728036323184,4.19455,2384.1,2383.8,0.8147]
[1728036323584,8.38917,2384.1,2383.8,0.8147]
[1728036323815,8.38917,2384.1,2383.9,0.21367071]
[1728036325091,4.19463,2384.0,2383.9,0.21367071]
[1728036325413,5.033547,2384.0,2383.9,0.21367071]
[1728036326885,4.19463,2384.0,2383.9,0.21367071]
[1728036327042,3.0,2384.4,2384.0,4.1945]
[1728036327198,3.90460008,2384.7,2384.0,0.8167]
[1728036327199,4.1942,2384.3,2384.0,0.8167]
[1728036327399,4.19445,2384.1,2383.9,0.21367071]
[1728036327651,4.19463,2384.0,2383.9,0.21367071]
[1728036328247,4.19445,2384.1,2383.9,0.21367071]
[1728036328248,4.19447,2384.1,2383.9,0.21367071]
[1728036328394,8.38901,2384.1,2383.9,0.21367071]
[1728036328591,4.19447,2384.1,2383.9,0.21367071]
[1728036329033,7.19385,2384.5,2384.0,0.7602]
[1728036329235,7.19405,2384.4,2384.0,4.95475]
[1728036329620,4.19405,2384.4,2384.0,4.95475]
[1728036329842,4.19405,2384.4,2384.1,0.93631007]
[1728036329994,4.19411,2384.3,2384.0,0.7602]
[1728036332029,4.19411,2384.3,2384.1,0.10915198]
[1728036333664,4.19411,2384.3,2384.0,0.7602]
[1728036333967,4.19411,2384.3,2384.1,0.10860552]
[1728036334271,4.19427,2384.2,2384.1,0.10860552]
[1728036335131,4.19413,2384.3,2384.1,0.10860552]
[1728036341918,4.19427,2384.2,2384.1,0.10860552]
[1728036342082,4.19414,2384.3,2384.1,0.10860552]
[1728036343073,4.19427,2384.2,2384.1,0.10860552]
[1728036343946,4.19418,2384.3,2384.1,0.10860552]
[1728036346904,4.19411,2384.3,2384.1,0.10860552]
[1728036347274,4.19396,2384.4,2384.1,0.10860552]
[1728036347603,8.02371,2384.7,2384.2,4.96866]
[1728036347802,5.99419876,2384.8,2384.3,0.7744]
[1728036348007,4.1934,2384.7,2384.4,0.7965]
[1728036348219,4.19333,2384.8,2384.4,0.7965]
[1728036348220,4.19333,2384.8,2384.4,4.99031]
[1728036348417,3.0,2384.8,2384.6,0.7965]
[1728036348915,4.19313,2384.9,2384.7,0.10620874]
[1728036349097,6.82545876,2385.1,2384.7,0.10620874]
[1728036349098,1.80086876,2385.1,2384.7,0.10620874]
[1728036349264,4.1927,2385.1,2384.8,0.7542]
[1728036349605,4.1927,2385.1,2384.9,0.10603077]
[1728036350673,4.1927,2385.1,2385.0,0.21138514]
[1728036351093,4.1927,2385.1,2385.0,0.31732694]
[1728036351370,6.82191876,2385.3,2385.0,0.31732694]
[1728036351567,4.1926,2385.2,2385.0,0.31732694]
[1728036353001,4.19269,2385.1,2385.0,0.31732694]
[1728036355425,5.50397792,2385.1,2385.0,0.31732694]
[1728036355792,5.50397792,2385.1,2385.0,0.21138514]
[1728036355986,9.30587792,2385.1,2385.0,0.21138514]
[1728036356199,4.19364,2384.6,2384.4,0.8226]
[1728036356416,4.19375,2384.5,2384.4,0.8226]
[1728036356731,4.19375,2384.5,2383.9,5.07619127]
[1728036356732,4.19407,2384.4,2384.0,1.2766148]
[1728036356936,4.19407,2384.4,2384.0,1.78920348]
[1728036357105,4.19417,2384.3,2384.0,1.78920348]
[1728036357401,4.19445,2384.1,2383.6,4.96362]
[1728036357724,4.7188892,2384.4,2383.8,0.7684]
[1728036357725,8.38878,2384.2,2383.8,0.7684]
[1728036358035,4.19448,2384.1,2383.8,0.7684]
[1728036358332,4.19448,2384.1,2383.8,1.684269]
[1728036358495,4.19438,2384.2,2383.8,1.684269]
[1728036358696,4.19464,2384.0,2383.8,0.7684]
[1728036359201,4.1944,2384.2,2383.8,0.7684]
[1728036359531,4.1944,2384.2,2383.9,0.20843052]
[1728036359731,4.19417,2384.3,2384.0,0.7684]
[1728036360039,4.1944,2384.2,2384.0,0.7684]
[1728036360358,4.19417,2384.3,2384.0,0.7684]
[1728036360633,4.19417,2384.3,2384.0,1.28556105]
[1728036360634,4.19411,2384.3,2384.0,1.28556105]
[1728036360994,4.19394,2384.4,2384.0,0.7684]
[1728036361409,8.38795,2384.4,2384.0,0.7684]
[1728036361594,4.19394,2384.4,2384.0,0.7684]
[1728036362331,4.19411,2384.3,2384.0,0.7684]
[1728036363539,4.19395,2384.4,2384.1,0.8136]
[1728036363719,4.19395,2384.4,2384.1,0.84309003]
[1728036363921,4.19395,2384.4,2384.1,1.78715609]
[1728036364096,7.19361,2384.6,2384.1,5.98152609]
[1728036364298,11.38727,2384.6,2384.1,5.98152609]
[1728036364623,7.19361,2384.6,2384.1,5.95203606]
[1728036364827,4.19383,2384.5,2384.1,5.95203606]
[1728036365128,4.19383,2384.5,2384.2,0.59520361]
[1728036365630,7.19361,2384.6,2384.2,0.59520361]
[1728036365933,4.1935,2384.7,2384.4,0.8162]
[1728036366341,4.19331,2384.8,2384.4,0.8162]
[1728036366820,4.19331,2384.8,2384.4,5.57064736]
[1728036367021,4.19331,2384.8,2384.5,0.10294657]
[1728036367603,4.1934,2384.7,2384.5,0.10294657]
[1728036369353,4.19308,2384.9,2384.7,0.7538]
[1728036369521,4.19322,2384.8,2384.7,0.7538]
[1728036370838,4.19322,2384.8,2384.6,0.2061576]
[1728036371155,4.19308,2384.9,2384.6,0.7808251]
[1728036371315,8.38621,2384.9,2384.6,0.7808251]
[1728036371515,4.19308,2384.9,2384.6,0.7808251]
[1728036372039,4.19322,2384.8,2384.6,0.7808251]
[1728036372436,4.19308,2384.9,2384.6,0.7808251]
[1728036372622,3.0,2385.1,2384.6,0.7808251]
[1728036372823,4.19312,2384.9,2384.6,0.7808251]
[1728036373234,4.19323,2384.8,2384.6,0.7808251]
[1728036374055,4.19339,2384.7,2384.6,0.2061576]
[1728036375168,7.19339,2384.7,2384.6,0.2061576]
[1728036375457,4.194,2384.4,2384.1,0.7507]
[1728036375813,4.194,2384.4,2384.3,0.21196503]
[1728036376552,4.19376,2384.5,2384.3,0.21196503]
[1728036376938,4.19357,2384.6,2384.3,0.21196503]
[1728036377656,4.19376,2384.5,2384.3,0.21196503]
[1728036378713,4.19357,2384.6,2384.3,0.21196503]
[1728036378914,4.19357,2384.6,2384.4,0.765]
[1728036379312,4.19375,2384.5,2384.4,0.765]
[1728036381526,4.19392,2384.4,2384.3,0.21196503]
[1728036382124,4.19392,2384.4,2384.3,0.31497092]
[1728036382336,4.19375,2384.5,2384.3,0.31497092]
[1728036383282,4.19362,2384.6,2384.3,0.31497092]
[1728036383883,4.19376,2384.5,2384.3,0.31497092]
[1728036384549,4.19392,2384.4,2384.3,0.31497092]
[1728036387456,4.19377,2384.5,2384.3,0.31497092]
[1728036390551,4.19392,2384.4,2384.3,0.31497092]
[1728036394953,4.19377,2384.5,2384.3,0.31497092]
[1728036400703,7.99921,2384.7,2384.3,1.13697092]
[1728036400902,7.99921,2384.7,2384.4,0.53311709]
[1728036401199,7.99921,2384.7,2384.5,0.10286519]
[1728036401397,11.38692,2384.7,2384.5,0.10286519]
[1728036401690,7.19341,2384.7,2384.5,0.10286519]
[1728036402197,4.19357,2384.6,2384.5,0.10286519]
[1728036404066,4.1934,2384.7,2384.4,0.55]
[1728036404265,4.1934,2384.7,2384.5,0.68063317]
[1728036404590,4.19357,2384.6,2384.5,0.10283467]
[1728036404889,4.19357,2384.6,2384.3,1.03396503]
[1728036405100,4.19357,2384.6,2384.5,0.10281771]
[1728036405594,5.02307,2384.6,2384.3,0.21196503]
[1728036405803,4.19392,2384.4,2384.3,0.21196503]
[1728036405972,4.19392,2384.4,2384.3,0.66777522]
[1728036407961,4.19375,2384.5,2384.3,0.66777522]
[1728036408262,4.19375,2384.5,2384.3,0.86787368]
[1728036408659,4.19392,2384.4,2384.3,0.86787368]
[1728036408857,4.19392,2384.4,2384.3,0.66774544]
[1728036410297,4.19392,2384.4,2384.3,0.21196503]
[1728036410473,4.19392,2384.4,2384.3,0.66775753]
[1728036412098,4.19392,2384.4,2384.3,0.77075328]
[1728036412406,4.99622,2384.4,2384.3,0.31496078]
[1728036412612,6.09525632,2384.4,2384.3,0.31496078]
[1728036413111,6.09525632,2384.4,2384.3,0.21196503]
[1728036413437,6.09525632,2384.4,2384.3,0.31501162]
[1728036415215,4.99622,2384.4,2384.3,0.31501162]
[1728036417425,4.19392,2384.4,2384.3,0.31501162]
[1728036419516,5.01922,2384.4,2384.3,0.31501162]
[1728036420021,5.01922,2384.4,2384.3,0.21196503]
[1728036423999,4.19392,2384.4,2384.3,0.21196503]
[1728036424232,4.19375,2384.5,2384.3,1.12003172]
[1728036424394,4.19367,2384.6,2384.3,1.12003172]
[1728036424752,8.3874,2384.6,2384.4,0.53142217]
[1728036424948,8.3874,2384.6,2384.3,1.12003172]
[1728036425133,4.19367,2384.6,2384.5,0.09978866]
[1728036425336,4.19375,2384.5,2384.4,0.09987767]
[1728036425546,4.19392,2384.4,2384.3,0.21196503]
[1728036426450,4.19392,2384.4,2383.7,1.76300255]
[1728036426451,4.19487,2383.9,2383.7,1.65730127]
[1728036426763,4.19487,2383.9,2383.7,0.7758]
[1728036427178,4.19487,2383.9,2383.8,0.1004119]
[1728036427513,4.19487,2383.9,2383.7,0.7758]
[1728036427713,4.19487,2383.9,2383.8,0.10044243]
[1728036428114,4.19487,2383.9,2383.7,0.7758]
[1728036428343,4.19487,2383.9,2383.8,0.10044243]
[1728036428720,4.19487,2383.9,2383.7,0.7758]
[1728036428922,4.19487,2383.9,2383.8,0.10044243]
[1728036429259,4.19487,2383.9,2383.7,0.7758]
[1728036429466,4.19487,2383.9,2383.8,0.10044243]
[1728036429663,4.19487,2383.9,2383.7,0.7758]
[1728036429824,4.19487,2383.9,2383.8,0.30594636]
[1728036430737,6.80896321,2383.9,2383.8,0.30594636]
[1728036431323,7.90932253,2383.9,2383.8,0.30594636]
[1728036431528,10.90932253,2383.9,2383.8,0.10044243]
[1728036431729,10.90932253,2383.9,2383.6,0.34886473]
[1728036431730,5.02495,2383.7,2383.6,0.34886473]
[1728036432043,11.75690346,2383.7,2383.6,0.34886473]
[1728036432850,11.75690346,2383.7,2383.6,0.55888869]
[1728036433244,11.75690346,2383.7,2383.6,0.65301441]
[1728036434280,11.75690346,2383.7,2383.6,0.30414968]
[1728036434565,11.75690346,2383.7,2383.6,0.21002396]
[1728036440626,4.19621,2383.1,2383.0,0.7781]
[1728036442311,4.19621,2383.1,2383.0,0.87298426]
[1728036444174,4.19621,2383.1,2383.0,1.08677306]
[1728036446403,4.19606,2383.2,2383.0,1.08677306]
[1728036446814,8.39218,2383.2,2383.0,1.61512037]
[1728036447882,4.19606,2383.2,2383.0,1.61512037]
[1728036448421,8.39222,2383.2,2383.1,0.7736]
[1728036448823,8.39222,2383.2,2383.1,0.86865981]
[1728036449018,4.19593,2383.3,2383.1,0.86865981]
[1728036449207,5.99616321,2383.4,2383.1,1.4493924]
[1728036449416,10.19199321,2383.4,2383.1,1.4493924]
[1728036450118,5.99616321,2383.4,2383.1,1.4493924]
[1728036450418,4.19577,2383.4,2383.1,1.4493924]
[1728036450585,4.19577,2383.4,2383.2,0.58595512]
[1728036450991,4.19577,2383.4,2383.3,0.0948816]
[1728036451397,4.19577,2383.4,2383.1,1.35433259]
[1728036451623,4.19577,2383.4,2383.2,0.0949707]
[1728036451835,4.19567,2383.5,2383.2,0.0949707]
[1728036452044,4.19567,2383.5,2383.2,1.10053591]
[1728036452735,5.99587321,2383.6,2383.2,5.29648591]
[1728036452934,4.19548,2383.6,2383.3,0.8106]
[1728036453124,4.19548,2383.6,2383.3,0.90544427]
[1728036453290,4.19548,2383.6,2383.3,1.99383248]
[1728036453490,4.19547,2383.6,2383.3,1.99383248]
[1728036453705,4.19552,2383.5,2383.3,1.99383248]
[1728036453905,4.19552,2383.5,2383.3,0.90544427]
[1728036456307,8.39112,2383.5,2383.3,0.90544427]
[1728036457316,4.19552,2383.5,2383.3,0.90544427]
[1728036457515,8.39114,2383.5,2383.3,0.90544427]
[1728036457710,4.19552,2383.5,2383.3,0.90544427]
[1728036457941,4.19552,2383.5,2383.0,4.4101688]
[1728036457942,4.19606,2383.2,2383.0,0.2137888]
[1728036458150,4.19621,2383.1,2383.0,0.2137888]
[1728036459476,1.80039321,2383.2,2383.0,0.2137888]
[1728036459637,4.1961,2383.2,2383.1,0.7795]
[1728036459967,4.19592,2383.3,2383.1,0.7795]
[1728036460466,4.19603,2383.2,2383.0,0.2137888]
[1728036460665,4.19621,2383.1,2383.0,0.2137888]
[1728036468760,5.99642321,2383.2,2383.0,0.2137888]
[1728036468966,4.19603,2383.2,2383.0,0.2137888]
[1728036470188,4.19621,2383.1,2383.0,0.2137888]
[1728036471282,8.838834,2383.1,2383.0,0.2137888]
[1728036472190,4.19697,2382.7,2382.3,4.95931]
[1728036472565,4.19697,2382.7,2382.4,0.0925126]
[1728036473281,4.19697,2382.7,2382.6,0.21017098]
[1728036473861,4.19697,2382.7,2382.6,0.30250527]
[1728036477663,5.99736321,2382.7,2382.6,0.30250527]
[1728036477999,7.09881353,2382.7,2382.6,0.30250527]
[1728036478361,10.09881353,2382.7,2382.6,0.30250527]
[1728036479759,10.09881353,2382.7,2382.6,0.21017098]
[1728036480082,10.09881353,2382.7,2382.6,0.30250527]
[1728036481798,10.09881353,2382.7,2381.7,1.71150127]
[1728036481799,4.1985,2381.8,2381.7,1.71150127]
[1728036481956,4.1985,2381.8,2381.7,0.83]
[1728036481957,5.99889321,2381.8,2381.7,0.83]
[1728036482156,5.99889321,2381.8,2381.7,1.04393681]
[1728036482471,5.99889321,2381.8,2381.7,0.21393681]
[1728036483500,9.82139321,2381.8,2381.7,0.21393681]
[1728036483794,4.19904,2381.5,2381.1,0.7862]
[1728036484000,4.19956,2381.2,2381.1,0.7862]
[1728036484306,13.33494597,2381.8,2380.9,0.7862]
[1728036484307,4.19982,2381.1,2380.9,0.7862]
[1728036484508,4.19991,2381.0,2380.7,0.7862]
[1728036484801,8.39995,2381.0,2380.7,0.7862]
[1728036485325,8.11171265,2381.1,2380.7,0.7862]
[1728036485493,3.0,2381.1,2380.9,0.21202252]
[1728036488170,7.19981,2381.1,2380.9,0.21202252]
[1728036489507,7.19981,2381.1,2381.0,0.08544222]
[1728036489695,3.0,2381.1,2381.0,0.08544222]
[1728036490094,7.19973,2381.1,2381.0,0.08544222]
[1728036490896,9.53005827,2381.1,2381.0,0.08544222]
[1728036491991,7.19973,2381.1,2381.0,0.08544222]
[1728036492628,8.39869,2381.4,2381.0,0.08544222]
[1728036492813,4.19896,2381.6,2381.1,0.8269]
[1728036493111,4.19912,2381.5,2381.1,0.8269]
[1728036493295,4.19925,2381.4,2381.1,0.8269]
[1728036493524,4.19912,2381.5,2381.2,0.08537544]
[1728036493925,8.39829,2381.5,2381.2,0.08537544]
[1728036494303,4.19921,2381.4,2381.2,0.08537544]
[1728036495444,4.19938,2381.3,2381.2,0.08537544]
[1728036495743,4.19921,2381.4,2381.1,0.8269]
[1728036495909,4.19928,2381.4,2381.2,0.08537544]
[1728036496242,4.19914,2381.5,2381.2,0.08537544]
[1728036496444,4.19897,2381.6,2381.2,0.08537544]
[1728036496445,8.39797,2381.6,2381.2,0.08537544]
[1728036496654,4.99785,2381.8,2381.2,0.08537544]
[1728036496938,4.99785,2381.8,2381.3,5.02397]
[1728036496939,4.19876,2381.7,2381.3,5.02397]
[1728036497141,4.19876,2381.7,2381.4,0.08547105]
[1728036497500,4.19886,2381.6,2381.4,0.08547105]
[1728036498560,4.19876,2381.7,2381.4,0.08547105]
[1728036498705,4.19876,2381.7,2381.4,1.07273663]
[1728036498906,8.39756,2381.7,2381.4,1.07273663]
[1728036499100,4.19876,2381.7,2381.5,0.2085359]
[1728036499551,4.19885,2381.6,2381.5,0.2085359]
[1728036502043,4.19885,2381.6,2381.5,0.2938737]
[1728036503354,8.11082265,2381.6,2381.5,0.2938737]
[1728036503517,12.34178091,2381.6,2381.5,0.0853378]
[1728036503714,12.34178091,2381.6,2381.1,0.7674]
[1728036504030,3.0,2381.5,2381.3,0.21002319]
[1728036504231,4.19881,2381.7,2381.4,0.7674]
[1728036504755,4.19903,2381.5,2381.3,0.21002319]
[1728036505157,4.19921,2381.4,2381.3,0.21002319]
[1728036505450,4.19903,2381.5,2381.3,0.21002319]
[1728036505953,3.0,2381.7,2381.3,0.21002319]
[1728036506114,3.91197265,2381.8,2381.3,0.21002319]
[1728036506115,4.19905,2381.5,2381.3,0.21002319]
[1728036507142,4.19871,2381.7,2381.4,0.8123]
[1728036507564,7.95864,2381.9,2381.4,0.8123]
[1728036507747,4.19853,2381.8,2381.4,5.01137]
[1728036508075,7.19834,2381.9,2381.5,5.19306745]
[1728036508262,4.19855,2381.8,2381.5,0.99407745]
[1728036508468,11.39682,2381.9,2381.5,0.99407745]
[1728036508642,7.19834,2381.9,2381.6,0.8123]
[1728036508971,3.0,2381.9,2381.6,0.8123]
[1728036509133,3.0,2381.9,2381.6,5.61168075]
[1728036509781,3.0,2382.0,2381.7,4.19867]
[1728036509978,7.19816,2382.0,2381.6,1.41283075]
[1728036510182,8.39689,2381.9,2381.6,1.41283075]
[1728036510477,8.39686,2381.9,2381.6,0.8123]
[1728036510682,8.11051265,2381.8,2381.6,0.8123]
[1728036510988,8.11051265,2381.8,2381.3,0.21002319]
[1728036510989,4.19921,2381.4,2381.3,0.21002319]
[1728036512573,4.19921,2381.4,2381.3,0.29290908]
[1728036513251,4.19838245,2381.4,2381.3,0.29290908]
[1728036515066,4.94932,2381.8,2381.3,0.29290908]
[1728036515280,4.1991,2381.5,2381.3,0.29290908]
[1728036515479,4.1991,2381.5,2381.3,0.21002319]
[1728036515792,4.1991,2381.5,2381.4,0.0827831]
[1728036517769,3.0,2381.7,2381.4,0.0827831]
[1728036517987,4.1987,2381.7,2381.3,4.40939319]
[1728036518159,4.1987,2381.7,2381.4,0.08273231]
[1728036518915,4.1986,2381.8,2381.5,0.8095]
[1728036519088,3.0,2381.8,2381.5,5.00852]
[1728036519290,4.19841,2381.9,2381.6,0.08255385]
[1728036522122,4.19851,2381.8,2381.6,0.08255385]
[1728036525213,4.19868,2381.7,2381.6,0.08255385]
[1728036525687,4.19854,2381.8,2381.6,0.08255385]
[1728036525893,8.39713,2381.8,2381.6,0.08255385]
[1728036526089,4.19868,2381.7,2381.6,0.08255385]
[1728036529434,4.19918,2381.5,2381.3,0.96302319]
[1728036530014,4.19914,2381.5,2381.3,0.96302319]
[1728036530916,4.19921,2381.4,2381.3,0.96302319]
[1728036531868,4.19921,2381.4,2381.3,0.21002319]
[1728036532018,4.19921,2381.4,2381.3,0.29302081]
[1728036532862,4.72187265,2381.7,2381.3,0.29302081]
[1728036533051,4.19911,2381.5,2381.3,0.29302081]
[1728036533632,4.19921,2381.4,2381.3,0.29302081]
[1728036539151,4.98261,2381.4,2381.3,0.29302081]
[1728036541172,4.19921,2381.4,2381.3,0.29302081]
[1728036542538,8.00231,2381.4,2380.7,1.66380127]
[1728036542842,8.00231,2381.4,2380.8,0.08354895]
[1728036542843,4.19978,2381.1,2380.8,0.08354895]
[1728036543044,4.19969,2381.2,2380.8,4.28379895]
[1728036543367,4.19969,2381.2,2380.9,0.7826]
[1728036543545,4.19969,2381.2,2381.0,0.08337039]
[1728036543742,4.19973,2381.1,2381.0,0.08337039]
[1728036545370,4.19946,2381.3,2381.0,0.29767323]
[1728036545573,7.19922,2381.4,2381.1,0.7763]
[1728036545574,4.1993,2381.4,2381.1,0.7763]
[1728036545990,4.1993,2381.4,2381.2,0.08319186]
[1728036546935,4.19921,2381.4,2381.2,0.08319186]
[1728036547377,4.19904,2381.5,2381.2,0.08319186]
[1728036547581,4.19923,2381.4,2381.2,0.08319186]
[1728036547784,4.19923,2381.4,2381.2,0.66335586]
[1728036549750,8.39821,2381.5,2381.2,0.66335586]
[1728036550085,4.19921,2381.4,2381.2,0.08319186]
[1728036551090,4.19905,2381.5,2381.2,0.08319186]
[1728036551446,4.19905,2381.5,2381.2,0.96469313]
[1728036551447,8.39825,2381.5,2381.2,0.96469313]
[1728036551646,4.19923,2381.4,2381.2,0.96469313]
[1728036552594,4.19923,2381.4,2381.2,0.08319186]
[1728036553997,4.19886,2381.6,2381.3,0.8044]
[1728036554164,4.19913,2381.5,2381.4,0.08290499]
[1728036554366,4.19886,2381.6,2381.4,0.08290499]
[1728036554893,4.19903,2381.5,2381.4,0.08290499]
[1728036555091,4.19887,2381.6,2381.4,0.08290499]
[1728036555261,4.19887,2381.6,2381.4,1.01152049]
[1728036555774,11.39761,2381.7,2381.4,1.01152049]
[1728036555964,7.19876,2381.7,2381.4,1.01152049]
[1728036556163,4.19887,2381.6,2381.4,0.08290499]
[1728036556397,7.19876,2381.7,2381.4,0.08290499]
[1728036556957,4.19876,2381.7,2381.4,0.08290499]
[1728036558868,0.7983,2381.9,2381.5,4.19896]
[1728036558869,3.7983,2381.9,2381.5,4.19896]
[1728036559051,7.19841,2381.9,2381.6,0.7608]
[1728036559255,4.1985,2381.8,2381.6,0.84352652]
[1728036559491,4.1985,2381.8,2381.6,1.39864142]
[1728036560468,7.19835,2381.9,2381.6,1.39864142]
[1728036561605,7.19835,2381.9,2381.7,0.21397306]
[1728036561787,7.19835,2381.9,2381.8,0.08254809]
[1728036562117,7.19835,2381.9,2381.7,0.21397306]
[1728036562261,7.19835,2381.9,2381.8,0.08254809]
[1728036562658,7.19835,2381.9,2381.7,0.21397306]
[1728036562967,7.19835,2381.9,2381.8,0.08254809]
[1728036563151,7.19835,2381.9,2381.7,0.21397306]
[1728036563351,7.19835,2381.9,2381.8,0.08242282]
[1728036563609,7.19835,2381.9,2381.7,0.21397306]
[1728036563811,7.19835,2381.9,2381.8,0.08242282]
[1728036563958,7.19835,2381.9,2381.7,0.21397306]
[1728036564160,7.19835,2381.9,2381.8,0.08242282]
[1728036564455,7.19835,2381.9,2381.7,0.21397306]
[1728036564688,7.19835,2381.9,2381.8,0.08242282]
[1728036565059,7.19835,2381.9,2381.7,0.21397306]
[1728036565275,7.19835,2381.9,2381.8,0.08242282]